[Event "Titled Tuesday Blitz December 20 Early 2022"]
[White "Manish Anto Cristiano F"]
[Black "aidenzhouu"]
[WhiteFideId "25095927"]
[WhiteElo "2485"]
[BlackElo "2386"]
[Result "0-1"]
[Round "11"]
[TimeControl "180+2"]
[Date "2022.12.20"]
[WhiteClock "0:01:32"]
[BlackClock "0:00:44"]

1. d4 {[%clk 0:02:59]}  Nf6 {[%clk 0:03:00]} 2. c4 {[%clk 0:02:59]}  Nc6 {[%clk 0:02:59]} 3. Nf3 {[%clk 0:02:58]}  e6 {[%clk 0:02:59]} 4. g3 {[%clk 0:02:56]}  Bb4+ {[%clk 0:02:58]} 5. Bd2 {[%clk 0:02:56]}  Qe7 {[%clk 0:02:59]} 6. Bg2 {[%clk 0:02:56]}  O-O {[%clk 0:02:58]} 7. O-O {[%clk 0:02:56]}  Bxd2 {[%clk 0:02:59]} 8. Nbxd2 {[%clk 0:02:56]}  d6 {[%clk 0:02:59]} 9. e4 {[%clk 0:02:56]}  e5 {[%clk 0:03:00]} 10. d5 {[%clk 0:02:56]}  Bg4 {[%clk 0:03:00]} 11. dxc6 {[%clk 0:02:54]}  bxc6 {[%clk 0:02:59]} 12. Qc2 {[%clk 0:02:54]}  Rab8 {[%clk 0:02:58]} 13. b3 {[%clk 0:02:54]}  Nd7 {[%clk 0:02:56]} 14. h3 {[%clk 0:02:52]}  Be6 {[%clk 0:02:55]} 15. Rfd1 {[%clk 0:02:50]}  f5 {[%clk 0:02:56]} 16. Nh2 {[%clk 0:02:46]}  f4 {[%clk 0:02:55]} 17. Qc3 {[%clk 0:02:42]}  Nc5 {[%clk 0:02:48]} 18. Rf1 {[%clk 0:02:41]}  Qg5 {[%clk 0:02:43]} 19. Rae1 {[%clk 0:02:37]}  a5 {[%clk 0:02:39]} 20. Ndf3 {[%clk 0:02:36]}  Qg6 {[%clk 0:02:39]} 21. Nh4 {[%clk 0:02:34]}  Qg5 {[%clk 0:02:27]} 22. N2f3 {[%clk 0:02:33]}  Qe7 {[%clk 0:02:23]} 23. Qxa5 {[%clk 0:02:33]}  g5 {[%clk 0:02:07]} 24. Nf5 {[%clk 0:02:31]}  Qf6 {[%clk 0:02:04]} 25. g4 {[%clk 0:02:28]}  Bxf5 {[%clk 0:02:04]} 26. exf5 {[%clk 0:02:26]}  e4 {[%clk 0:02:04]} 27. Nd2 {[%clk 0:02:26]}  f3 {[%clk 0:01:59]} 28. Bh1 {[%clk 0:02:18]}  Qd4 {[%clk 0:01:57]} 29. Re3 {[%clk 0:02:15]}  Ra8 {[%clk 0:01:54]} 30. Qc3 {[%clk 0:02:13]}  Qxc3 {[%clk 0:01:51]} 31. Rxc3 {[%clk 0:02:13]}  Rxa2 {[%clk 0:01:52]} 32. b4 {[%clk 0:02:12]}  Rxd2 {[%clk 0:01:47]} 33. bxc5 {[%clk 0:02:12]}  d5 {[%clk 0:01:47]} 34. cxd5 {[%clk 0:02:11]}  cxd5 {[%clk 0:01:48]} 35. Rb3 {[%clk 0:02:11]}  Rc2 {[%clk 0:01:33]} 36. Bxf3 {[%clk 0:02:01]}  exf3 {[%clk 0:01:32]} 37. Rxf3 {[%clk 0:02:01]}  Rxc5 {[%clk 0:01:32]} 38. Rd1 {[%clk 0:02:02]}  c6 {[%clk 0:01:31]} 39. f6 {[%clk 0:02:01]}  Rc4 {[%clk 0:01:30]} 40. Rf5 {[%clk 0:02:01]}  h6 {[%clk 0:01:29]} 41. Kg2 {[%clk 0:02:00]}  Rf4 {[%clk 0:01:29]} 42. Rxf4 {[%clk 0:01:58]}  gxf4 {[%clk 0:01:30]} 43. Kf3 {[%clk 0:01:57]}  Rxf6 {[%clk 0:01:30]} 44. Rd4 {[%clk 0:01:58]}  Kf7 {[%clk 0:01:30]} 45. Rxf4 {[%clk 0:01:58]}  Rxf4+ {[%clk 0:01:28]} 46. Kxf4 {[%clk 0:01:59]}  Ke6 {[%clk 0:01:24]} 47. h4 {[%clk 0:01:59]}  c5 {[%clk 0:01:24]} 48. Ke3 {[%clk 0:01:59]}  d4+ {[%clk 0:01:23]} 49. Ke4 {[%clk 0:01:59]}  Kf6 {[%clk 0:01:21]} 50. f4 {[%clk 0:01:59]}  Ke6 {[%clk 0:01:19]} 51. Kd3 {[%clk 0:01:57]}  Kd5 {[%clk 0:01:17]} 52. h5 {[%clk 0:01:56]}  c4+ {[%clk 0:01:16]} 53. Kd2 {[%clk 0:01:56]}  Ke4 {[%clk 0:00:47]} 54. g5 {[%clk 0:01:55]}  c3+ {[%clk 0:00:46]} 55. Kc2 {[%clk 0:01:55]}  Ke3 {[%clk 0:00:45]} 56. gxh6 {[%clk 0:01:53]}  d3+ {[%clk 0:00:43]} 57. Kxc3 {[%clk 0:01:53]}  d2 {[%clk 0:00:42]} 58. h7 {[%clk 0:01:50]}  d1=Q {[%clk 0:00:43]} 59. h8=Q {[%clk 0:01:33]}  Qa1+ {[%clk 0:00:43]} 60. Kb4 {[%clk 0:01:32]}  Qxh8 {[%clk 0:00:44]} 0-1


[Site "https://www.chess.com"]

[Event "Titled Tuesday Blitz December 20 Early 2022"]
[White "Manukyan_Artak"]
[Black "Pietrek, Gerhard"]
[BlackFideId "24631698"]
[WhiteElo "2560"]
[BlackElo "1596"]
[Result "0-1"]
[Round "11"]
[TimeControl "180+2"]
[Date "2022.12.20"]
[WhiteClock "0:01:11"]
[BlackClock "0:00:19"]

1. e4 {[%clk 0:03:00]}  c5 {[%clk 0:02:58]} 2. Nf3 {[%clk 0:03:00]}  Nc6 {[%clk 0:02:59]} 3. c3 {[%clk 0:03:00]}  Nf6 {[%clk 0:02:55]} 4. e5 {[%clk 0:03:00]}  Nd5 {[%clk 0:02:55]} 5. d4 {[%clk 0:03:01]}  cxd4 {[%clk 0:02:55]} 6. cxd4 {[%clk 0:03:02]}  g6 {[%clk 0:02:52]} 7. Nc3 {[%clk 0:03:03]}  Nxc3 {[%clk 0:02:50]} 8. bxc3 {[%clk 0:03:04]}  Bg7 {[%clk 0:02:49]} 9. h4 {[%clk 0:03:04]}  d6 {[%clk 0:02:47]} 10. Bf4 {[%clk 0:03:00]}  dxe5 {[%clk 0:02:46]} 11. Nxe5 {[%clk 0:02:58]}  Nxe5 {[%clk 0:02:44]} 12. Bxe5 {[%clk 0:02:59]}  Bxe5 {[%clk 0:02:43]} 13. dxe5 {[%clk 0:03:00]}  Qc7 {[%clk 0:02:40]} 14. Bb5+ {[%clk 0:02:53]}  Kf8 {[%clk 0:02:38]} 15. Qd4 {[%clk 0:02:51]}  Be6 {[%clk 0:02:34]} 16. O-O {[%clk 0:02:49]}  a6 {[%clk 0:02:26]} 17. Be2 {[%clk 0:02:48]}  Rd8 {[%clk 0:02:22]} 18. Qe3 {[%clk 0:02:48]}  h5 {[%clk 0:02:22]} 19. Rfd1 {[%clk 0:02:44]}  Kg7 {[%clk 0:02:21]} 20. Rd4 {[%clk 0:02:40]}  Rc8 {[%clk 0:02:15]} 21. c4 {[%clk 0:02:37]}  Rhd8 {[%clk 0:02:14]} 22. Rad1 {[%clk 0:02:33]}  Rxd4 {[%clk 0:02:09]} 23. Rxd4 {[%clk 0:02:30]}  Rd8 {[%clk 0:01:56]} 24. f4 {[%clk 0:02:16]}  Qc5 {[%clk 0:01:49]} 25. Re4 {[%clk 0:02:16]}  Qxe3+ {[%clk 0:01:49]} 26. Rxe3 {[%clk 0:02:17]}  Rd4 {[%clk 0:01:48]} 27. g3 {[%clk 0:02:14]}  Bxc4 {[%clk 0:01:47]} 28. Bxc4 {[%clk 0:02:13]}  Rxc4 {[%clk 0:01:48]} 29. e6 {[%clk 0:02:12]}  f5 {[%clk 0:01:46]} 30. Rd3 {[%clk 0:02:10]}  Kf6 {[%clk 0:01:34]} 31. Rd7 {[%clk 0:02:10]}  b5 {[%clk 0:01:34]} 32. Kf2 {[%clk 0:02:05]}  Rc3 {[%clk 0:01:33]} 33. Rd2 {[%clk 0:02:03]}  Ra3 {[%clk 0:01:33]} 34. Re2 {[%clk 0:02:03]}  a5 {[%clk 0:01:32]} 35. Kg2 {[%clk 0:02:00]}  b4 {[%clk 0:01:32]} 36. Kh3 {[%clk 0:02:01]}  Rc3 {[%clk 0:01:31]} 37. Re5 {[%clk 0:01:57]}  Ra3 {[%clk 0:01:28]} 38. Re2 {[%clk 0:01:57]}  a4 {[%clk 0:01:23]} 39. Rb2 {[%clk 0:01:56]}  Kxe6 {[%clk 0:01:18]} 40. Rxb4 {[%clk 0:01:54]}  Rxa2 {[%clk 0:01:18]} 41. Rb6+ {[%clk 0:01:54]}  Kf7 {[%clk 0:01:17]} 42. Ra6 {[%clk 0:01:53]}  a3 {[%clk 0:01:14]} 43. Ra7 {[%clk 0:01:53]}  Ra1 {[%clk 0:01:14]} 44. Ra6 {[%clk 0:01:50]}  Ke8 {[%clk 0:00:25]} 45. Kg2 {[%clk 0:01:45]}  Kd7 {[%clk 0:00:22]} 46. Rxg6 {[%clk 0:01:44]}  Ra2+ {[%clk 0:00:22]} 47. Kf3 {[%clk 0:01:40]}  Rc2 {[%clk 0:00:23]} 48. Ra6 {[%clk 0:01:39]}  a2 {[%clk 0:00:23]} 49. Ke3 {[%clk 0:01:40]}  Kc7 {[%clk 0:00:22]} 50. Kd4 {[%clk 0:01:38]}  Kb7 {[%clk 0:00:21]} 51. Ra3 {[%clk 0:01:36]}  Re2 {[%clk 0:00:22]} 52. Kd3 {[%clk 0:01:31]}  Rg2 {[%clk 0:00:21]} 53. Kd4 {[%clk 0:01:31]}  Kb6 {[%clk 0:00:18]} 54. Ke5 {[%clk 0:01:30]}  Kb5 {[%clk 0:00:18]} 55. Kxf5 {[%clk 0:01:28]}  Kb4 {[%clk 0:00:19]} 56. Ra7 {[%clk 0:01:28]}  Kb3 {[%clk 0:00:19]} 57. Kg6 {[%clk 0:01:16]}  Rxg3+ {[%clk 0:00:19]} 58. Kxh5 {[%clk 0:01:15]}  Kb2 {[%clk 0:00:20]} 59. Rb7+ {[%clk 0:01:15]}  Rb3 {[%clk 0:00:19]} 60. Ra7 {[%clk 0:01:11]}  Ra3 {[%clk 0:00:19]} 0-1


[Site "https://www.chess.com"]

[Event "Titled Tuesday Blitz December 20 Early 2022"]
[White "MartinMatthiesen"]
[Black "Garcia Brion, Eduardo"]
[BlackFideId "2223864"]
[WhiteElo "2497"]
[BlackElo "2175"]
[Result "1-0"]
[Round "11"]
[TimeControl "180+2"]
[Date "2022.12.20"]
[WhiteClock "0:00:12"]
[BlackClock "0:00:01"]

1. d4 {[%clk 0:02:52]}  Nf6 {[%clk 0:02:58]} 2. c4 {[%clk 0:02:51]}  e6 {[%clk 0:02:59]} 3. Nf3 {[%clk 0:02:51]}  Bb4+ {[%clk 0:02:59]} 4. Bd2 {[%clk 0:02:50]}  Qe7 {[%clk 0:02:58]} 5. g3 {[%clk 0:02:47]}  Nc6 {[%clk 0:02:56]} 6. Bg2 {[%clk 0:02:47]}  Bxd2+ {[%clk 0:02:56]} 7. Qxd2 {[%clk 0:02:47]}  Ne4 {[%clk 0:02:55]} 8. Qc2 {[%clk 0:02:47]}  Qb4+ {[%clk 0:02:56]} 9. Kf1 {[%clk 0:02:44]}  f5 {[%clk 0:02:36]} 10. e3 {[%clk 0:02:28]}  O-O {[%clk 0:02:22]} 11. Nbd2 {[%clk 0:02:20]}  Nxd2+ {[%clk 0:01:40]} 12. Nxd2 {[%clk 0:02:18]}  b6 {[%clk 0:01:40]} 13. a3 {[%clk 0:02:08]}  Qe7 {[%clk 0:01:40]} 14. b4 {[%clk 0:02:08]}  Bb7 {[%clk 0:01:39]} 15. Rc1 {[%clk 0:01:55]}  d6 {[%clk 0:01:30]} 16. h4 {[%clk 0:01:43]}  e5 {[%clk 0:01:28]} 17. Bd5+ {[%clk 0:01:39]}  Kh8 {[%clk 0:01:27]} 18. Nf3 {[%clk 0:01:38]}  e4 {[%clk 0:01:06]} 19. Ng5 {[%clk 0:01:36]}  a5 {[%clk 0:00:50]} 20. Qb2 {[%clk 0:01:09]}  axb4 {[%clk 0:00:46]} 21. axb4 {[%clk 0:01:08]}  Ra4 {[%clk 0:00:39]} 22. Ne6 {[%clk 0:00:47]}  Rfa8 {[%clk 0:00:34]} 23. Nf4 {[%clk 0:00:40]}  Nd8 {[%clk 0:00:20]} 24. Bxb7 {[%clk 0:00:29]}  Nxb7 {[%clk 0:00:21]} 25. d5 {[%clk 0:00:24]}  Ra2 {[%clk 0:00:14]} 26. Qc3 {[%clk 0:00:20]}  R8a3 {[%clk 0:00:13]} 27. Qd4 {[%clk 0:00:19]}  Kg8 {[%clk 0:00:08]} 28. Kg2 {[%clk 0:00:19]}  Nd8 {[%clk 0:00:06]} 29. Rc3 {[%clk 0:00:19]}  Nf7 {[%clk 0:00:05]} 30. Rxa3 {[%clk 0:00:18]}  Rxa3 {[%clk 0:00:06]} 31. Ra1 {[%clk 0:00:16]}  Rxa1 {[%clk 0:00:06]} 32. Qxa1 {[%clk 0:00:16]}  Ne5 {[%clk 0:00:05]} 33. Qa8+ {[%clk 0:00:16]}  Kf7 {[%clk 0:00:06]} 34. Qc8 {[%clk 0:00:16]}  Nd3 {[%clk 0:00:05]} 35. Qxf5+ {[%clk 0:00:15]}  Kg8 {[%clk 0:00:05]} 36. Ne6 {[%clk 0:00:15]}  Nxb4 {[%clk 0:00:04]} 37. Qxe4 {[%clk 0:00:15]}  Na6 {[%clk 0:00:03]} 38. Qf5 {[%clk 0:00:15]}  g6 {[%clk 0:00:03]} 39. Qg4 {[%clk 0:00:13]}  Nb4 {[%clk 0:00:02]} 40. h5 {[%clk 0:00:13]}  Kf7 {[%clk 0:00:01]} 41. hxg6+ {[%clk 0:00:12]}  hxg6 {[%clk 0:00:02]} 42. Qh3 {[%clk 0:00:13]}  Kg8 {[%clk 0:00:02]} 43. Qh6 {[%clk 0:00:13]}  Qf7 {[%clk 0:00:02]} 44. Qg5 {[%clk 0:00:12]}  Nd3 {[%clk 0:00:01]} 45. Qd8+ {[%clk 0:00:12]} 1-0


[Site "https://www.chess.com"]

[Event "Titled Tuesday Blitz December 20 Early 2022"]
[White "MathiasWomacka"]
[Black "Nyambe, Maketo"]
[BlackFideId "8700915"]
[WhiteElo "2562"]
[BlackElo "2091"]
[Result "1-0"]
[Round "11"]
[TimeControl "180+2"]
[Date "2022.12.20"]
[WhiteClock "0:00:21"]
[BlackClock "0:00:02"]

1. e4 {[%clk 0:03:00]}  c5 {[%clk 0:02:40]} 2. Nf3 {[%clk 0:03:00]}  d6 {[%clk 0:02:39]} 3. d4 {[%clk 0:03:00]}  cxd4 {[%clk 0:02:40]} 4. Nxd4 {[%clk 0:03:00]}  Nf6 {[%clk 0:02:41]} 5. Nc3 {[%clk 0:03:00]}  a6 {[%clk 0:02:41]} 6. Be2 {[%clk 0:03:00]}  e6 {[%clk 0:02:42]} 7. O-O {[%clk 0:02:59]}  Be7 {[%clk 0:02:41]} 8. f4 {[%clk 0:02:58]}  O-O {[%clk 0:02:41]} 9. Kh1 {[%clk 0:02:57]}  Qc7 {[%clk 0:02:41]} 10. Qe1 {[%clk 0:02:55]}  b5 {[%clk 0:02:40]} 11. Bf3 {[%clk 0:02:54]}  Bb7 {[%clk 0:02:40]} 12. e5 {[%clk 0:02:54]}  Ne8 {[%clk 0:02:35]} 13. f5 {[%clk 0:02:53]}  dxe5 {[%clk 0:02:34]} 14. fxe6 {[%clk 0:02:50]}  exd4 {[%clk 0:02:30]} 15. Nd5 {[%clk 0:02:47]}  Qd8 {[%clk 0:02:06]} 16. Nxe7+ {[%clk 0:02:46]}  Qxe7 {[%clk 0:02:07]} 17. Bxb7 {[%clk 0:02:46]}  Qxb7 {[%clk 0:02:06]} 18. e7 {[%clk 0:02:46]}  Nd7 {[%clk 0:02:03]} 19. Bd2 {[%clk 0:02:15]}  Nef6 {[%clk 0:01:58]} 20. exf8=Q+ {[%clk 0:02:13]}  Nxf8 {[%clk 0:01:59]} 21. Qe5 {[%clk 0:02:03]}  Ne6 {[%clk 0:01:51]} 22. c3 {[%clk 0:01:54]}  Qb8 {[%clk 0:01:39]} 23. cxd4 {[%clk 0:01:51]}  Qxe5 {[%clk 0:01:27]} 24. dxe5 {[%clk 0:01:52]}  Ng4 {[%clk 0:01:28]} 25. Bc3 {[%clk 0:01:43]}  a5 {[%clk 0:01:20]} 26. a3 {[%clk 0:01:39]}  Ne3 {[%clk 0:01:04]} 27. Rf3 {[%clk 0:01:36]}  Nd5 {[%clk 0:01:00]} 28. Rd1 {[%clk 0:01:26]}  Nb6 {[%clk 0:00:59]} 29. Rd6 {[%clk 0:01:13]}  Nc4 {[%clk 0:00:57]} 30. Rd7 {[%clk 0:01:13]}  b4 {[%clk 0:00:41]} 31. Bd4 {[%clk 0:01:01]}  bxa3 {[%clk 0:00:24]} 32. bxa3 {[%clk 0:00:59]}  Rb8 {[%clk 0:00:10]} 33. h4 {[%clk 0:00:51]}  a4 {[%clk 0:00:08]} 34. Rfxf7 {[%clk 0:00:31]}  Nxd4 {[%clk 0:00:04]} 35. Rxg7+ {[%clk 0:00:31]}  Kf8 {[%clk 0:00:05]} 36. Rxh7 {[%clk 0:00:30]}  Rb1+ {[%clk 0:00:03]} 37. Kh2 {[%clk 0:00:29]}  Kg8 {[%clk 0:00:03]} 38. Rxd4 {[%clk 0:00:20]}  Nxe5 {[%clk 0:00:03]} 39. Rc4 {[%clk 0:00:21]}  Nxc4 {[%clk 0:00:02]} 40. Ra7 {[%clk 0:00:21]} 1-0


[Site "https://www.chess.com"]

[Event "Titled Tuesday Blitz December 20 Early 2022"]
[White "Mekhitarian, Krikor Sevag"]
[Black "Coachpoker"]
[WhiteFideId "2107660"]
[WhiteElo "2604"]
[BlackElo "2626"]
[Result "1/2-1/2"]
[Round "11"]
[TimeControl "180+2"]
[Date "2022.12.20"]
[WhiteClock "0:00:05"]
[BlackClock "0:00:07"]

1. Nf3 {[%clk 0:03:00]}  c5 {[%clk 0:02:59]} 2. c4 {[%clk 0:03:00]}  Nc6 {[%clk 0:02:58]} 3. Nc3 {[%clk 0:03:00]}  g6 {[%clk 0:02:58]} 4. g3 {[%clk 0:02:50]}  Bg7 {[%clk 0:02:58]} 5. Bg2 {[%clk 0:02:51]}  e6 {[%clk 0:02:58]} 6. h4 {[%clk 0:02:50]}  h5 {[%clk 0:02:57]} 7. d4 {[%clk 0:02:50]}  cxd4 {[%clk 0:02:54]} 8. Nb5 {[%clk 0:02:50]}  d5 {[%clk 0:02:53]} 9. cxd5 {[%clk 0:02:51]}  exd5 {[%clk 0:02:53]} 10. O-O {[%clk 0:02:31]}  Nge7 {[%clk 0:02:53]} 11. Nbxd4 {[%clk 0:02:28]}  O-O {[%clk 0:02:52]} 12. Be3 {[%clk 0:02:18]}  Nf5 {[%clk 0:02:46]} 13. Nxf5 {[%clk 0:02:12]}  Bxf5 {[%clk 0:02:47]} 14. Nd4 {[%clk 0:02:13]}  Be4 {[%clk 0:02:45]} 15. Bxe4 {[%clk 0:02:06]}  dxe4 {[%clk 0:02:42]} 16. Nxc6 {[%clk 0:02:06]}  bxc6 {[%clk 0:02:42]} 17. Qa4 {[%clk 0:02:07]}  Qd5 {[%clk 0:02:22]} 18. Rac1 {[%clk 0:01:49]}  Bxb2 {[%clk 0:02:18]} 19. Rc5 {[%clk 0:01:47]}  Qd7 {[%clk 0:01:55]} 20. Qxe4 {[%clk 0:01:44]}  Rac8 {[%clk 0:01:49]} 21. Rb1 {[%clk 0:01:40]}  Bg7 {[%clk 0:01:46]} 22. Rbc1 {[%clk 0:01:39]}  Rfe8 {[%clk 0:01:43]} 23. Qa4 {[%clk 0:01:32]}  Re6 {[%clk 0:01:39]} 24. Rd1 {[%clk 0:01:30]}  Qe8 {[%clk 0:01:35]} 25. Rd3 {[%clk 0:01:26]}  Rb8 {[%clk 0:01:31]} 26. Rc1 {[%clk 0:01:18]}  Rb2 {[%clk 0:01:23]} 27. Qxa7 {[%clk 0:01:14]}  Rxe2 {[%clk 0:01:20]} 28. a4 {[%clk 0:01:12]}  Kh7 {[%clk 0:01:17]} 29. a5 {[%clk 0:01:11]}  Ra2 {[%clk 0:01:14]} 30. a6 {[%clk 0:01:07]}  Re4 {[%clk 0:01:06]} 31. Qb7 {[%clk 0:00:48]}  Rg4 {[%clk 0:00:57]} 32. Qxc6 {[%clk 0:00:42]}  Qe5 {[%clk 0:00:57]} 33. Qf3 {[%clk 0:00:16]}  Rxa6 {[%clk 0:00:54]} 34. Qxf7 {[%clk 0:00:16]}  Rxg3+ {[%clk 0:00:51]} 35. fxg3 {[%clk 0:00:17]}  Qxg3+ {[%clk 0:00:52]} 36. Kf1 {[%clk 0:00:14]}  Rf6+ {[%clk 0:00:46]} 37. Qxf6 {[%clk 0:00:14]}  Bxf6 {[%clk 0:00:47]} 38. Rd7+ {[%clk 0:00:14]}  Bg7 {[%clk 0:00:42]} 39. Rcc7 {[%clk 0:00:14]}  Qxe3 {[%clk 0:00:33]} 40. Rxg7+ {[%clk 0:00:14]}  Kh8 {[%clk 0:00:33]} 41. Rge7 {[%clk 0:00:07]}  Qf3+ {[%clk 0:00:29]} 42. Ke1 {[%clk 0:00:08]}  Qg3+ {[%clk 0:00:27]} 43. Kd2 {[%clk 0:00:08]}  Qf4+ {[%clk 0:00:25]} 44. Kc3 {[%clk 0:00:08]}  Qf6+ {[%clk 0:00:24]} 45. Kb3 {[%clk 0:00:05]}  Qf3+ {[%clk 0:00:22]} 46. Kc4 {[%clk 0:00:05]}  Qf4+ {[%clk 0:00:20]} 47. Kd5 {[%clk 0:00:05]}  Qf5+ {[%clk 0:00:19]} 48. Kd6 {[%clk 0:00:04]}  Qf6+ {[%clk 0:00:17]} 49. Kc5 {[%clk 0:00:05]}  Qf5+ {[%clk 0:00:15]} 50. Kc6 {[%clk 0:00:06]}  Qf6+ {[%clk 0:00:15]} 51. Kd7 {[%clk 0:00:05]}  Qd4+ {[%clk 0:00:11]} 52. Ke6 {[%clk 0:00:05]}  Qe4+ {[%clk 0:00:09]} 53. Kd6 {[%clk 0:00:02]}  Qd4+ {[%clk 0:00:08]} 54. Ke6 {[%clk 0:00:03]}  Qe4+ {[%clk 0:00:08]} 55. Kd7 {[%clk 0:00:04]}  Qd5+ {[%clk 0:00:07]} 56. Ke8 {[%clk 0:00:03]}  Qg8+ {[%clk 0:00:06]} 57. Kd7 {[%clk 0:00:04]}  Qd5+ {[%clk 0:00:06]} 58. Kc8 {[%clk 0:00:04]}  Qa8+ {[%clk 0:00:06]} 59. Kd7 {[%clk 0:00:05]}  Qd5+ {[%clk 0:00:07]} 1/2-1/2


[Site "https://www.chess.com"]

[Event "Titled Tuesday Blitz December 20 Early 2022"]
[White "Mikhail_Bryakin"]
[Black "McCarthyStone"]
[WhiteElo "2765"]
[BlackElo "2471"]
[Result "1-0"]
[Round "11"]
[TimeControl "180+2"]
[Date "2022.12.20"]
[WhiteClock "0:00:15"]
[BlackClock "0:00:06"]

1. g3 {[%clk 0:02:48]}  Nc6 {[%clk 0:02:58]} 2. Bg2 {[%clk 0:02:42]}  e5 {[%clk 0:02:57]} 3. c4 {[%clk 0:02:41]}  h5 {[%clk 0:02:57]} 4. h4 {[%clk 0:02:40]}  d6 {[%clk 0:02:58]} 5. Nc3 {[%clk 0:02:39]}  Nh6 {[%clk 0:02:55]} 6. b3 {[%clk 0:02:38]}  Be6 {[%clk 0:02:54]} 7. Bb2 {[%clk 0:02:38]}  Be7 {[%clk 0:02:53]} 8. Nd5 {[%clk 0:02:38]}  Qd7 {[%clk 0:02:52]} 9. d3 {[%clk 0:02:38]}  Ng4 {[%clk 0:02:50]} 10. e3 {[%clk 0:02:38]}  g5 {[%clk 0:02:48]} 11. hxg5 {[%clk 0:02:36]}  Bxg5 {[%clk 0:02:49]} 12. Nf3 {[%clk 0:02:36]}  Be7 {[%clk 0:02:48]} 13. Nh4 {[%clk 0:02:31]}  O-O-O {[%clk 0:02:46]} 14. b4 {[%clk 0:02:22]}  Bxh4 {[%clk 0:02:32]} 15. Rxh4 {[%clk 0:02:14]}  Bxd5 {[%clk 0:02:32]} 16. cxd5 {[%clk 0:01:36]}  Nxb4 {[%clk 0:02:33]} 17. Qb3 {[%clk 0:01:23]}  Qf5 {[%clk 0:02:33]} 18. Rxg4 {[%clk 0:00:55]}  Nxd3+ {[%clk 0:02:22]} 19. Ke2 {[%clk 0:00:52]}  Qxf2+ {[%clk 0:02:10]} 20. Kxd3 {[%clk 0:00:39]}  hxg4 {[%clk 0:02:10]} 21. Qc2 {[%clk 0:00:27]}  Qxc2+ {[%clk 0:01:30]} 22. Kxc2 {[%clk 0:00:28]}  Rh2 {[%clk 0:01:30]} 23. Rg1 {[%clk 0:00:28]}  f5 {[%clk 0:01:31]} 24. Kd3 {[%clk 0:00:26]}  Rdh8 {[%clk 0:01:28]} 25. Bc1 {[%clk 0:00:26]}  Rf8 {[%clk 0:01:05]} 26. a4 {[%clk 0:00:24]}  a5 {[%clk 0:01:03]} 27. Bd2 {[%clk 0:00:24]}  b6 {[%clk 0:01:03]} 28. Bf1 {[%clk 0:00:23]}  Rfh8 {[%clk 0:00:58]} 29. Bg2 {[%clk 0:00:23]}  Kd7 {[%clk 0:00:58]} 30. e4 {[%clk 0:00:21]}  fxe4+ {[%clk 0:00:40]} 31. Bxe4 {[%clk 0:00:22]}  Rf8 {[%clk 0:00:33]} 32. Be3 {[%clk 0:00:19]}  Ra2 {[%clk 0:00:29]} 33. Bg6 {[%clk 0:00:15]}  Rxa4 {[%clk 0:00:27]} 34. Rh1 {[%clk 0:00:14]}  Rf3 {[%clk 0:00:25]} 35. Rh7+ {[%clk 0:00:14]}  Kc8 {[%clk 0:00:25]} 36. Be8 {[%clk 0:00:12]}  Ra3+ {[%clk 0:00:24]} 37. Kd2 {[%clk 0:00:12]}  Raxe3 {[%clk 0:00:12]} 38. Rh8 {[%clk 0:00:12]}  Rd3+ {[%clk 0:00:10]} 39. Ke2 {[%clk 0:00:13]}  Rfe3+ {[%clk 0:00:10]} 40. Kf2 {[%clk 0:00:13]}  Rf3+ {[%clk 0:00:10]} 41. Ke2 {[%clk 0:00:14]}  c5 {[%clk 0:00:09]} 42. Bb5+ {[%clk 0:00:11]}  Kb7 {[%clk 0:00:10]} 43. Bxd3 {[%clk 0:00:11]}  Rxg3 {[%clk 0:00:10]} 44. Bb5 {[%clk 0:00:12]}  a4 {[%clk 0:00:09]} 45. Rh7+ {[%clk 0:00:12]}  Kc8 {[%clk 0:00:09]} 46. Bxa4 {[%clk 0:00:12]}  Ra3 {[%clk 0:00:08]} 47. Bc6 {[%clk 0:00:13]}  g3 {[%clk 0:00:07]} 48. Rg7 {[%clk 0:00:13]}  Rb3 {[%clk 0:00:06]} 49. Rg8+ {[%clk 0:00:12]}  Kc7 {[%clk 0:00:06]} 50. Rg7+ {[%clk 0:00:13]}  Kb8 {[%clk 0:00:06]} 51. Rg6 {[%clk 0:00:14]}  b5 {[%clk 0:00:05]} 52. Rxd6 {[%clk 0:00:14]}  Rb2+ {[%clk 0:00:06]} 53. Kd3 {[%clk 0:00:14]}  g2 {[%clk 0:00:07]} 54. Rg6 {[%clk 0:00:14]}  Kc7 {[%clk 0:00:06]} 55. Ke4 {[%clk 0:00:14]}  c4 {[%clk 0:00:06]} 56. Kxe5 {[%clk 0:00:14]}  c3 {[%clk 0:00:07]} 57. Rg7+ {[%clk 0:00:14]}  Kd8 {[%clk 0:00:06]} 58. d6 {[%clk 0:00:14]}  Re2+ {[%clk 0:00:06]} 59. Kd5 {[%clk 0:00:15]}  c2 {[%clk 0:00:06]} 60. Rg8+ {[%clk 0:00:15]} 1-0


[Site "https://www.chess.com"]